fUST/lending_fUST_20250427
["ID","MTS","AMOUNT","RATE_DAILY","PERIOD"]
[359101880,1745707841743,-200.0,0.00016986,2]
[359101881,1745707841753,-214.43137117,0.00016986,2]
[359101882,1745707841763,-200.0,0.00016986,2]
[359101883,1745707841773,-400.0,0.00016986,2]
[359101884,1745707841785,-206.15320426,0.00016986,2]
[359101885,1745707841796,-200.0,0.00016986,2]
[359101886,1745707841807,-400.0,0.00016986,2]
[359101887,1745707841819,-315.93461698,0.00016986,2]
[359101888,1745707841829,-200.0,0.00016986,2]
[359101889,1745707841840,-400.0,0.00016986,2]
[359101890,1745707841851,-200.0,0.00016986,2]
[359101891,1745707841862,-151.244324,0.00016986,2]
[359101892,1745707841873,-200.0,0.00016986,2]
[359101893,1745707841884,-400.0,0.00016986,2]
[359101894,1745707841893,-400.0,0.00016986,2]
[359101895,1745707841903,-167.77,0.00016986,2]
[359101896,1745707841913,-400.0,0.00016986,2]
[359101897,1745707841923,-200.0,0.00016986,2]
[359101899,1745707841932,-400.0,0.00016986,2]
[359101900,1745707841945,-200.0,0.00016986,2]
[359101902,1745707841955,-200.0,0.00016986,2]
[359101904,1745707841964,-200.0,0.00016986,2]
[359101906,1745707841973,-508.92,0.00016986,2]
[359101908,1745707841983,-400.0,0.00016986,2]
[359101910,1745707841992,-400.0,0.00016986,2]
[359101913,1745707842002,-200.0,0.00016986,2]
[359101914,1745707842011,-200.0,0.00016986,2]
[359101916,1745707842020,-200.0,0.00016986,2]
[359101918,1745707842031,-400.0,0.00016986,2]
[359101920,1745707842040,-200.0,0.00016986,2]
[359101923,1745707842051,-400.0,0.00016986,2]
[359101925,1745707842060,-200.0,0.00016986,2]
[359101926,1745707842069,-200.0,0.00016986,2]
[359101928,1745707842079,-200.0,0.00016986,2]
[359101930,1745707842088,-200.0,0.00016986,2]
[359101933,1745707842098,-489.72,0.00016986,2]
[359101935,1745707842108,-400.0,0.00016986,2]
[359101936,1745707842119,-400.0,0.00016986,2]
[359101938,1745707842129,-400.0,0.00016986,2]
[359101940,1745707842138,-400.0,0.00016986,2]
[359101942,1745707842148,-400.0,0.00016986,2]
[359101944,1745707842158,-400.0,0.00016986,2]
[359101947,1745707842167,-400.0,0.00016986,2]
[359101948,1745707842177,-400.0,0.00016986,2]
[359101950,1745707842186,-400.0,0.00016986,2]
[359101952,1745707842196,-400.0,0.00016986,2]
[359101954,1745707842204,-400.0,0.00016986,2]
[359101956,1745707842214,-200.0,0.00016986,2]
[359101959,1745707842224,-400.0,0.00016986,2]
[359101977,1745707842383,-200.0,0.00016986,2]
[359101979,1745707842394,-400.0,0.00016986,2]
[359101981,1745707842404,-200.0,0.00016986,2]
[359101983,1745707842414,-200.0,0.00016986,2]
[359101985,1745707842423,-200.0,0.00016986,2]
[359101987,1745707842433,-400.0,0.00016986,2]
[359101989,1745707842442,-200.0,0.00016986,2]
[359101991,1745707842451,-400.0,0.00016986,2]
[359101993,1745707842461,-400.0,0.00016986,2]
[359101995,1745707842470,-200.0,0.00016986,2]
[359101997,1745707842480,-200.0,0.00016986,2]
[359101999,1745707842490,-400.0,0.00016986,2]
[359102001,1745707842499,-400.0,0.00016986,2]
[359102003,1745707842508,-200.0,0.00016986,2]
[359102005,1745707842518,-400.0,0.00016986,2]
[359102007,1745707842527,-400.0,0.00016986,2]
[359102009,1745707842536,-400.0,0.00016986,2]
[359102011,1745707842545,-200.0,0.00016986,2]
[359102013,1745707842555,-200.0,0.00016986,2]
[359102015,1745707842564,-200.0,0.00016986,2]
[359102017,1745707842573,-400.0,0.00016986,2]
[359102019,1745707842582,-400.0,0.00016986,2]
[359102021,1745707842592,-200.0,0.00016986,2]
[359102023,1745707842601,-200.0,0.00016986,2]
[359102025,1745707842611,-200.0,0.00016986,2]
[359102027,1745707842621,-400.0,0.00016986,2]
[359102029,1745707842632,-400.0,0.00016986,2]
[359102031,1745707842642,-200.0,0.00016986,2]
[359102033,1745707842651,-400.0,0.00016986,2]
[359102035,1745707842660,-400.0,0.00016986,2]
[359102037,1745707842670,-400.0,0.00016986,2]
[359102039,1745707842679,-400.0,0.00016986,2]
[359102041,1745707842688,-200.0,0.00016986,2]
[359102043,1745707842699,-462.33167693,0.00016986,2]
[359102045,1745707842708,-400.0,0.00016986,2]
[359102048,1745707842719,-395.1,0.00016986,2]
[359102050,1745707842728,-445.59222798,0.00016986,2]
[359102052,1745707842738,-1282.03,0.00016986,2]
[359102054,1745707842747,-200.0,0.00016986,2]
[359102056,1745707842757,-2225.13,0.00016986,2]
[359102058,1745707842767,-400.0,0.00016986,2]
[359102060,1745707842776,-200.0,0.00016986,2]
[359102062,1745707842785,-584.8,0.00016986,2]
[359102064,1745707842794,-400.0,0.00016986,2]
[359102066,1745707842803,-200.0,0.00016986,2]
[359102068,1745707842813,-400.0,0.00016986,2]
[359102069,1745707842822,-400.0,0.00016986,2]
[359102072,1745707842832,-400.0,0.00016986,2]
[359102073,1745707842841,-400.0,0.00016986,2]
[359102075,1745707842851,-400.0,0.00016986,2]
[359102077,1745707842861,-400.0,0.00016986,2]
[359102080,1745707842872,-400.0,0.00016986,2]
[359102081,1745707842882,-200.0,0.00016986,2]
[359102083,1745707842891,-200.0,0.00016986,2]
[359102085,1745707842901,-400.0,0.00016986,2]
[359102087,1745707842911,-203.63130158,0.00016986,2]
[359102090,1745707842921,-1369.58,0.00016986,2]
[359102091,1745707842931,-200.0,0.00016986,2]
[359102094,1745707842941,-200.0,0.00016986,2]
[359102096,1745707842953,-200.0,0.00016986,2]
[359102097,1745707842963,-400.0,0.00016986,2]
[359102099,1745707842973,-200.0,0.00016986,2]
[359102102,1745707842984,-400.0,0.00016986,2]
[359102103,1745707842993,-400.0,0.00016986,2]
[359102106,1745707843003,-400.0,0.00016986,2]
[359102108,1745707843012,-203.937019,0.00016986,2]
[359102109,1745707843024,-200.0,0.00016986,2]
[359102112,1745707843034,-400.0,0.00016986,2]
[359102114,1745707843046,-400.0,0.00016986,2]
[359102115,1745707843056,-200.0,0.00016986,2]
[359102117,1745707843067,-400.0,0.00016986,2]
[359102119,1745707843077,-200.0,0.00016986,2]
[359102122,1745707843087,-200.0,0.00016986,2]
[359102124,1745707843096,-151.0,0.00016986,2]
[359102127,1745707843106,-400.0,0.00016986,2]
[359102129,1745707843115,-200.0,0.00016986,2]
[359102132,1745707843126,-200.0,0.00016986,2]
[359102135,1745707843136,-200.0,0.00016986,2]
[359102138,1745707843145,-400.0,0.00016986,2]
[359102140,1745707843154,-400.0,0.00016986,2]
[359102143,1745707843164,-200.0,0.00016986,2]
[359102145,1745707843173,-200.0,0.00016986,2]
[359102147,1745707843182,-200.0,0.00016986,2]
[359102149,1745707843192,-205.9016316,0.00016986,2]
[359102151,1745707843201,-400.0,0.00016986,2]
[359102153,1745707843211,-400.0,0.00016986,2]
[359102155,1745707843220,-200.0,0.00016986,2]
[359102157,1745707843230,-400.0,0.00016986,2]
[359102159,1745707843239,-400.0,0.00016986,2]
[359102161,1745707843249,-200.0,0.00016986,2]
[359102163,1745707843259,-200.0,0.00016986,2]
[359102165,1745707843269,-151.0,0.00016986,2]
[359102169,1745707843278,-200.0,0.00016986,2]
[359102172,1745707843288,-720.18,0.00016986,2]
[359102175,1745707843297,-400.0,0.00016986,2]
[359102178,1745707843306,-200.0,0.00016986,2]
[359102179,1745707843316,-200.0,0.00016986,2]
[359102181,1745707843325,-400.0,0.00016986,2]
[359102183,1745707843336,-1906.92,0.00016986,2]
[359102186,1745707843345,-200.0,0.00016986,2]
[359102187,1745707843354,-203.14575811,0.00016986,2]
[359102190,1745707843364,-919.46,0.00016986,2]
[359102192,1745707843374,-400.0,0.00016986,2]
[359102194,1745707843384,-400.0,0.00016986,2]
[359102196,1745707843393,-400.0,0.00016986,2]
[359102198,1745707843403,-928.81,0.00016986,2]
[359102200,1745707843413,-400.0,0.00016986,2]
[359102202,1745707843422,-400.0,0.00016986,2]
[359102204,1745707843433,-400.0,0.00016986,2]
[359102206,1745707843443,-200.0,0.00016986,2]
[359102208,1745707843452,-200.0,0.00016986,2]
[359102210,1745707843461,-457.32,0.00016986,2]
[359102212,1745707843471,-200.0,0.00016986,2]
[359102214,1745707843480,-400.0,0.00016986,2]
[359102216,1745707843490,-200.0,0.00016986,2]
[359102218,1745707843500,-400.0,0.00016986,2]
[359102220,1745707843509,-201.16690227,0.00016986,2]
[359102222,1745707843519,-400.0,0.00016986,2]
[359102224,1745707843530,-204.50369162,0.00016986,2]
[359102226,1745707843539,-200.0,0.00016986,2]
[359102228,1745707843549,-409.34,0.00016986,2]
[359102230,1745707843558,-819.72,0.00016986,2]
[359102232,1745707843567,-400.0,0.00016986,2]
[359102234,1745707843577,-400.0,0.00016986,2]
[359102236,1745707843586,-400.0,0.00016986,2]
[359102238,1745707843595,-200.0,0.00016986,2]
[359102240,1745707843604,-205.43583714,0.00016986,2]
[359102242,1745707843614,-1094.74,0.00016986,2]
[359102244,1745707843623,-1151.8,0.00016986,2]
[359102246,1745707843633,-200.0,0.00016986,2]
[359102248,1745707843643,-400.0,0.00016986,2]
[359102250,1745707843652,-200.0,0.00016986,2]
[359102252,1745707843662,-400.0,0.00016986,2]
[359102254,1745707843671,-400.0,0.00016986,2]
[359102256,1745707843680,-204.87708678,0.00016986,2]
[359102258,1745707843689,-400.0,0.00016986,2]
[359102260,1745707843699,-400.0,0.00016986,2]
[359102262,1745707843708,-400.0,0.00016986,2]
[359102264,1745707843718,-200.0,0.00016986,2]
[359102266,1745707843728,-400.0,0.00016986,2]
[359102268,1745707843738,-200.0,0.00016986,2]
[359102270,1745707843747,-202.10618709,0.00016986,2]
[359102272,1745707843756,-400.0,0.00016986,2]
[359102275,1745707843766,-200.0,0.00016986,2]
[359102278,1745707843775,-400.0,0.00016986,2]
[359102280,1745707843784,-400.0,0.00016986,2]
[359102283,1745707843793,-400.0,0.00016986,2]
[359102286,1745707843803,-200.0,0.00016986,2]
[359102289,1745707843812,-400.0,0.00016986,2]
[359102292,1745707843821,-200.0,0.00016986,2]
[359102294,1745707843830,-1402.5,0.00016986,2]
[359102296,1745707843840,-200.0,0.00016986,2]
[359102298,1745707843850,-215.2037673,0.00016986,2]
[359102300,1745707843860,-211.0434474,0.00016986,2]
[359102302,1745707843871,-481.5,0.00016986,2]
[359102304,1745707843881,-200.0,0.00016986,2]
[359102306,1745707843890,-200.0,0.00016986,2]
[359102308,1745707843900,-200.0,0.00016986,2]
[359102310,1745707843909,-911.203198,0.00016986,2]
[359102312,1745707843919,-400.0,0.00016986,2]
[359102314,1745707843929,-205.3275433,0.00016986,2]
[359102316,1745707843941,-911.203198,0.00016986,2]
[359102318,1745707843951,-796.69,0.00016986,2]
[359102320,1745707843961,-281.79393633,0.00016986,2]
[359102322,1745707843970,-200.0,0.00016986,2]
[359102324,1745707843979,-400.0,0.00016986,2]
[359102326,1745707843989,-200.0,0.00016986,2]
[359102328,1745707843998,-400.0,0.00016986,2]
[359102330,1745707844008,-501.09534526,0.00017039,2]
[359102332,1745707844017,-500.0,0.00017043,2]
[359102334,1745707844026,-300.0,0.0001726,2]
[359102336,1745707844036,-300.0,0.0001726,2]
[359102338,1745707844045,-300.0,0.0001726,2]
[359102340,1745707844055,-362.71,0.0001726,2]
[359102342,1745707844064,-257.88,0.0001726,2]
[359102345,1745707844074,-400.0,0.0001726,2]
[359102346,1745707844084,-400.0,0.0001726,2]
[359102348,1745707844093,-400.0,0.0001726,2]
[359102351,1745707844103,-400.0,0.0001726,2]
[359102352,1745707844112,-151.0,0.0001726,2]
[359102354,1745707844122,-228.2,0.0001726,2]
[359102356,1745707844131,-508.92,0.0001726,2]
[359102358,1745707844141,-400.0,0.0001726,2]
[359102361,1745707844151,-384.6078509,0.0001726,2]
[359102362,1745707844161,-400.0,0.0001726,2]
[359102364,1745707844171,-151.0,0.0001726,2]
[359102366,1745707844180,-400.0,0.0001726,2]
[359102368,1745707844190,-489.72,0.0001726,2]
[359102370,1745707844200,-400.0,0.0001726,2]
[359102372,1745707844210,-151.0,0.0001726,2]
[359102375,1745707844219,-233.07,0.0001726,2]
[359102376,1745707844229,-400.0,0.0001726,2]
[359102378,1745707844238,-400.0,0.0001726,2]
[359102380,1745707844248,-400.0,0.0001726,2]
[359102383,1745707844257,-500.0,0.0001726,2]
[359102385,1745707844267,-400.0,0.0001726,2]
[359102386,1745707844278,-400.0,0.0001726,2]
[359102388,1745707844287,-400.0,0.0001726,2]
[359102391,1745707844299,-151.0,0.0001726,2]
[359102393,1745707844308,-400.0,0.0001726,2]
[359102394,1745707844317,-400.0,0.0001726,2]
[359102396,1745707844326,-400.0,0.0001726,2]
[359102398,1745707844336,-400.0,0.0001726,2]
[359102401,1745707844346,-300.0,0.0001726,2]
[359102402,1745707844357,-400.0,0.0001726,2]
[359102404,1745707844368,-300.0,0.0001726,2]
[359102407,1745707844379,-400.0,0.0001726,2]
[359102408,1745707844388,-300.0,0.0001726,2]
[359102410,1745707844398,-300.0,0.0001726,2]
[359102413,1745707844408,-400.0,0.0001726,2]
[359102415,1745707844418,-300.0,0.0001726,2]
[359102417,1745707844427,-400.0,0.0001726,2]
[359102419,1745707844436,-300.0,0.0001726,2]
[359102420,1745707844446,-400.0,0.0001726,2]
[359102422,1745707844456,-400.0,0.0001726,2]
[359102425,1745707844466,-400.0,0.0001726,2]
[359102427,1745707844477,-300.0,0.0001726,2]
[359102428,1745707844486,-400.0,0.0001726,2]
[359102431,1745707844496,-547.83,0.0001726,2]
[359102433,1745707844507,-400.0,0.0001726,2]
[359102434,1745707844518,-315.702788,0.0001726,2]
[359102437,1745707844528,-315.702788,0.0001726,2]
[359102438,1745707844539,-1282.03,0.0001726,2]
[359102440,1745707844548,-2225.13,0.0001726,2]
[359102442,1745707844558,-300.0,0.0001726,2]
[359102444,1745707844567,-584.8,0.0001726,2]
[359102446,1745707844577,-400.0,0.0001726,2]
[359102448,1745707844587,-400.0,0.0001726,2]
[359102451,1745707844599,-400.0,0.0001726,2]
[359102452,1745707844611,-253.39745666,0.0001726,2]
[359102454,1745707844621,-400.0,0.0001726,2]
[359102457,1745707844632,-400.0,0.0001726,2]
[359102459,1745707844642,-212.22,0.0001726,2]
[359102460,1745707844652,-300.0,0.0001726,2]
[359102462,1745707844661,-300.0,0.0001726,2]
[359102464,1745707844671,-1369.58,0.0001726,2]
[359102465,1745707844680,-400.0,0.0001726,2]
[359102468,1745707844689,-389.32,0.0001726,2]
[359102469,1745707844700,-400.0,0.0001726,2]
[359102472,1745707844710,-300.0,0.0001726,2]
[359102474,1745707844720,-400.0,0.0001726,2]
[359102476,1745707844730,-300.0,0.0001726,2]
[359102477,1745707844740,-300.0,0.0001726,2]
[359102479,1745707844749,-400.0,0.0001726,2]
[359102481,1745707844758,-400.0,0.0001726,2]
[359102483,1745707844768,-300.0,0.0001726,2]
[359102486,1745707844777,-300.0,0.0001726,2]
[359102487,1745707844787,-720.18,0.0001726,2]
[359102489,1745707844796,-300.0,0.0001726,2]
[359102491,1745707844806,-1906.92,0.0001726,2]
[359102493,1745707844815,-919.46,0.0001726,2]
[359102495,1745707844824,-400.0,0.0001726,2]
[359102497,1745707844833,-400.0,0.0001726,2]
[359102499,1745707844842,-300.0,0.0001726,2]
[359102501,1745707844852,-928.81,0.0001726,2]
[359102503,1745707844861,-400.0,0.0001726,2]
[359102505,1745707844870,-400.0,0.0001726,2]
[359102507,1745707844880,-300.0,0.0001726,2]
[359102509,1745707844889,-457.32,0.0001726,2]
[359102511,1745707844898,-400.0,0.0001726,2]
[359102513,1745707844908,-400.0,0.0001726,2]
[359102515,1745707844918,-400.0,0.0001726,2]
[359102517,1745707844927,-409.34,0.0001726,2]
[359102519,1745707844940,-819.72,0.0001726,2]
[359102521,1745707844949,-400.0,0.0001726,2]
[359102523,1745707844959,-400.0,0.0001726,2]
[359102525,1745707844969,-400.0,0.0001726,2]
[359102527,1745707844978,-1094.74,0.0001726,2]
[359102529,1745707844989,-1151.8,0.0001726,2]
[359102531,1745707844998,-496.61,0.0001726,2]
[359102533,1745707845007,-400.0,0.0001726,2]
[359102535,1745707845019,-400.0,0.0001726,2]
[359102537,1745707845029,-400.0,0.0001726,2]
[359102539,1745707845038,-400.0,0.0001726,2]
[359102541,1745707845048,-300.0,0.0001726,2]
[359102543,1745707845058,-400.0,0.0001726,2]
[359102545,1745707845067,-433.13085557,0.0001726,2]
[359102547,1745707845076,-1402.5,0.0001726,2]
[359102549,1745707845086,-481.5,0.0001726,2]
[359102551,1745707845095,-796.69,0.0001726,2]
[359102553,1745707845106,-172.63894208,0.0001726,2]
[359102555,1745707845115,-1243.37746162,0.00017486,2]
[359102557,1745707845126,-400.0,0.00017534,2]
[359102559,1745707845136,-400.0,0.00017534,2]
[359102561,1745707845146,-400.0,0.00017534,2]
[359102563,1745707845156,-400.0,0.00017534,2]
[359102565,1745707845166,-508.92,0.00017534,2]
[359102567,1745707845176,-400.0,0.00017534,2]
[359102569,1745707845186,-400.0,0.00017534,2]
[359102571,1745707845196,-151.0,0.00017534,2]
[359102573,1745707845206,-400.0,0.00017534,2]
[359102575,1745707845216,-489.72,0.00017534,2]
[359102577,1745707845226,-400.0,0.00017534,2]
[359102579,1745707845236,-176.0,0.00017534,2]
[359102581,1745707845246,-400.0,0.00017534,2]
[359102583,1745707845256,-400.0,0.00017534,2]
[359102585,1745707845266,-400.0,0.00017534,2]
[359102587,1745707845277,-318.06,0.00017534,2]
[359102589,1745707845286,-400.0,0.00017534,2]
[359102591,1745707845296,-400.0,0.00017534,2]
[359102593,1745707845307,-400.0,0.00017534,2]
[359102595,1745707845317,-370.28,0.00017534,2]
[359102597,1745707845327,-400.0,0.00017534,2]
[359102599,1745707845337,-400.0,0.00017534,2]
[359102601,1745707845346,-400.0,0.00017534,2]
[359102603,1745707845356,-400.0,0.00017534,2]
[359102605,1745707845365,-505.90885364,0.00017534,2]
[359102607,1745707845375,-400.0,0.00017534,2]
[359102609,1745707845385,-400.0,0.00017534,2]
[359102611,1745707845395,-400.0,0.00017534,2]
[359102613,1745707845405,-400.0,0.00017534,2]
[359102615,1745707845415,-400.0,0.00017534,2]
[359102617,1745707845425,-1282.03,0.00017534,2]
[359102619,1745707845435,-2225.13,0.00017534,2]
[359102621,1745707845445,-584.8,0.00017534,2]
[359102623,1745707845455,-400.0,0.00017534,2]
[359102625,1745707845464,-400.0,0.00017534,2]
[359102627,1745707845474,-400.0,0.00017534,2]
[359102629,1745707845484,-400.0,0.00017534,2]
[359102631,1745707845494,-400.0,0.00017534,2]
[359102633,1745707845503,-1369.58,0.00017534,2]
[359102635,1745707845513,-400.0,0.00017534,2]
[359102637,1745707845522,-400.0,0.00017534,2]
[359102639,1745707845531,-400.0,0.00017534,2]
[359102641,1745707845541,-400.0,0.00017534,2]
[359102643,1745707845550,-400.0,0.00017534,2]
[359102645,1745707845559,-508.2085176,0.00017534,2]
[359102679,1745707845868,-211.9714824,0.00017534,2]
[359102681,1745707845879,-1230.02091335,0.00017534,2]
[359102683,1745707845891,-676.89908665,0.00017534,2]
[359102685,1745707845900,-919.46,0.00017534,2]
[359102687,1745707845910,-400.0,0.00017534,2]
[359102689,1745707845919,-400.0,0.00017534,2]
[359102691,1745707845928,-928.81,0.00017534,2]
[359102693,1745707845938,-400.0,0.00017534,2]
[359102695,1745707845949,-400.0,0.00017534,2]
[359102696,1745707845958,-457.32,0.00017534,2]
[359102697,1745707845968,-400.0,0.00017534,2]
[359102698,1745707845977,-400.0,0.00017534,2]
[359102699,1745707845986,-400.0,0.00017534,2]
[359102700,1745707845996,-409.34,0.00017534,2]
[359102701,1745707846005,-819.72,0.00017534,2]
[359102702,1745707846014,-400.0,0.00017534,2]
[359102703,1745707846024,-400.0,0.00017534,2]
[359102704,1745707846033,-400.0,0.00017534,2]
[359102705,1745707846043,-1094.74,0.00017534,2]
[359102706,1745707846052,-1151.8,0.00017534,2]
[359102707,1745707846061,-400.0,0.00017534,2]
[359102708,1745707846071,-400.0,0.00017534,2]
[359102709,1745707846080,-400.0,0.00017534,2]
[359102710,1745707846089,-200.0,0.00017534,2]
[359102711,1745707846099,-1402.5,0.00017534,2]
[359102712,1745707846108,-481.5,0.00017534,2]
[359102713,1745707846117,-796.69,0.00017534,2]
[359102714,1745707846126,-400.0,0.00017808,2]
[359102715,1745707846136,-400.0,0.00017808,2]
[359102716,1745707846146,-400.0,0.00017808,2]
[359102717,1745707846156,-176.4,0.00017808,2]
[359102718,1745707846166,-508.92,0.00017808,2]
[359102720,1745707846175,-400.0,0.00017808,2]
[359102721,1745707846184,-400.0,0.00017808,2]
[359102723,1745707846194,-400.0,0.00017808,2]
[359102725,1745707846203,-489.72,0.00017808,2]
[359102727,1745707846212,-400.0,0.00017808,2]
[359102729,1745707846221,-400.0,0.00017808,2]
[359102731,1745707846230,-400.0,0.00017808,2]
[359102733,1745707846239,-400.0,0.00017808,2]
[359102735,1745707846249,-400.0,0.00017808,2]
[359102737,1745707846258,-400.0,0.00017808,2]
[359102739,1745707846268,-400.0,0.00017808,2]
[359102741,1745707846277,-400.0,0.00017808,2]
[359102743,1745707846287,-400.0,0.00017808,2]
[359102745,1745707846298,-400.0,0.00017808,2]
[359102747,1745707846308,-187.66497663,0.00017808,2]
[359102749,1745707846318,-400.0,0.00017808,2]
[359102751,1745707846327,-400.0,0.00017808,2]
[359102753,1745707846337,-400.0,0.00017808,2]
[359102755,1745707846347,-400.0,0.00017808,2]
[359102757,1745707846356,-400.0,0.00017808,2]
[359102759,1745707846365,-1282.03,0.00017808,2]
[359102761,1745707846375,-2225.13,0.00017808,2]
[359102763,1745707846386,-584.8,0.00017808,2]
[359102765,1745707846395,-340.08,0.00017808,2]
[359102767,1745707846405,-400.0,0.00017808,2]
[359102769,1745707846415,-400.0,0.00017808,2]
[359102771,1745707846424,-400.0,0.00017808,2]
[359102773,1745707846434,-400.0,0.00017808,2]
[359102775,1745707846443,-1369.58,0.00017808,2]
[359102776,1745707846453,-400.0,0.00017808,2]
[359102777,1745707846463,-400.0,0.00017808,2]
[359102778,1745707846472,-400.0,0.00017808,2]
[359102779,1745707846482,-400.0,0.00017808,2]
[359102780,1745707846492,-341.93,0.00017808,2]
[359102781,1745707846502,-720.18,0.00017808,2]
[359102782,1745707846512,-1906.92,0.00017808,2]
[359102783,1745707846521,-919.46,0.00017808,2]
[359102784,1745707846530,-311.2628891,0.00017808,2]
[359102785,1745707846540,-400.0,0.00017808,2]
[359102786,1745707846550,-928.81,0.00017808,2]
[359102787,1745707846559,-392.83110937,0.00017808,2]
[359102788,1745707846571,-7.16889063,0.00017808,2]
[359102789,1745707846580,-400.0,0.00017808,2]
[359102790,1745707846589,-457.32,0.00017808,2]
[359102791,1745707846599,-400.0,0.00017808,2]
[359102792,1745707846608,-400.0,0.00017808,2]
[359102793,1745707846617,-400.0,0.00017808,2]
[359102794,1745707846626,-409.34,0.00017808,2]
[359102795,1745707846636,-819.72,0.00017808,2]
[359102796,1745707846646,-400.0,0.00017808,2]
[359102797,1745707846655,-400.0,0.00017808,2]
[359102798,1745707846666,-400.0,0.00017808,2]
[359102799,1745707846678,-1094.74,0.00017808,2]
[359102800,1745707846688,-1151.8,0.00017808,2]
[359102801,1745707846698,-400.0,0.00017808,2]
[359102802,1745707846707,-400.0,0.00017808,2]
[359102803,1745707846717,-231.09,0.00017808,2]
[359102804,1745707846727,-1402.5,0.00017808,2]
[359102805,1745707846736,-481.5,0.00017808,2]
[359102806,1745707846746,-796.69,0.00017808,2]
[359102807,1745707846756,-151.0,0.000179,2]
[359102808,1745707846766,-823.0,0.00017995,2]
[359102809,1745707846775,-151.0,0.00018082,2]
[359102810,1745707846785,-151.0,0.00018082,2]
[359102812,1745707846794,-207.38090419,0.00018082,2]
[359102814,1745707846805,-170.20616,0.00018082,2]
[359102816,1745707846818,-436.46,0.00018082,2]
[359102818,1745707846828,-151.0,0.00018082,2]
[359102820,1745707846838,-508.92,0.00018082,2]
[359102821,1745707846848,-400.0,0.00018082,2]
[359102822,1745707846858,-400.0,0.00018082,2]
[359102823,1745707846867,-400.0,0.00018082,2]
[359102824,1745707846877,-489.72,0.00018082,2]
[359102825,1745707846887,-265.64,0.00018082,2]
[359102826,1745707846897,-400.0,0.00018082,2]
[359102827,1745707846906,-300.0,0.00018082,2]
[359102828,1745707846916,-400.0,0.00018082,2]
[359102829,1745707846925,-400.0,0.00018082,2]
[359102830,1745707846935,-400.0,0.00018082,2]
[359102831,1745707846949,-400.0,0.00018082,2]
[359102832,1745707846958,-400.0,0.00018082,2]
[359102833,1745707846968,-400.0,0.00018082,2]
[359102834,1745707846977,-400.0,0.00018082,2]
[359102835,1745707846989,-400.0,0.00018082,2]
[359102836,1745707846998,-94.5713955,0.00018082,2]
[359102837,1745707847012,-305.4286045,0.00018082,2]
[359102838,1745707847025,-19.62703246,0.00018082,2]
[359102842,1745707847494,-504.77084098,0.00013697,2]
[359102843,1745707847504,-219.0449018,0.00013697,2]
[359102844,1745707847513,-350.0,0.00013697,2]
[359102845,1745707847524,-308.17255023,0.00013697,2]
[359102846,1745707847534,-500.0,0.00013699,2]